[Event "Titled Tuesday Blitz June 27 Early 2023"]
[White "Matyukov, Petr"]
[Black "Ajay Karthikeyan"]
[WhiteFideId "4103688"]
[BlackFideId "35011685"]
[WhiteElo "2513"]
[BlackElo "2699"]
[Result "0-1"]
[Round "3"]
[TimeControl "180+2"]
[Date "2023.06.27"]
[WhiteClock "0:00:00"]
[BlackClock "0:00:56"]
[Board "92"]

1. d4 {[%clk 0:03:00]}  Nf6 {[%clk 0:02:58]} 2. c4 {[%clk 0:03:01]}  g6 {[%clk 0:02:49]} 3. h4 {[%clk 0:03:00]}  c5 {[%clk 0:02:47]} 4. d5 {[%clk 0:03:00]}  b5 {[%clk 0:02:46]} 5. cxb5 {[%clk 0:02:59]}  a6 {[%clk 0:02:46]} 6. e3 {[%clk 0:02:46]}  axb5 {[%clk 0:02:39]} 7. Bxb5 {[%clk 0:02:42]}  Bg7 {[%clk 0:02:38]} 8. Nc3 {[%clk 0:02:41]}  O-O {[%clk 0:02:35]} 9. Nf3 {[%clk 0:02:37]}  Qa5 {[%clk 0:02:34]} 10. O-O {[%clk 0:02:34]}  d6 {[%clk 0:02:32]} 11. a4 {[%clk 0:02:33]}  Bg4 {[%clk 0:02:30]} 12. Bd2 {[%clk 0:02:18]}  Nbd7 {[%clk 0:02:28]} 13. Ne4 {[%clk 0:01:53]}  Qb6 {[%clk 0:02:21]} 14. Nxf6+ {[%clk 0:01:53]}  Nxf6 {[%clk 0:02:20]} 15. Bc3 {[%clk 0:01:52]}  Ra7 {[%clk 0:01:57]} 16. Ra3 {[%clk 0:01:29]}  Bd7 {[%clk 0:01:55]} 17. Rb3 {[%clk 0:01:23]}  Qb7 {[%clk 0:01:46]} 18. Bc6 {[%clk 0:01:05]}  Qc7 {[%clk 0:01:46]} 19. Bxd7 {[%clk 0:00:50]}  Qxd7 {[%clk 0:01:44]} 20. a5 {[%clk 0:00:50]}  Ne4 {[%clk 0:01:32]} 21. Bxg7 {[%clk 0:00:46]}  Kxg7 {[%clk 0:01:33]} 22. Qd3 {[%clk 0:00:40]}  Nf6 {[%clk 0:01:19]} 23. Ra1 {[%clk 0:00:38]}  Rfa8 {[%clk 0:01:18]} 24. Rba3 {[%clk 0:00:37]}  Qb7 {[%clk 0:01:16]} 25. Nd2 {[%clk 0:00:21]}  Qxd5 {[%clk 0:01:09]} 26. Qxd5 {[%clk 0:00:18]}  Nxd5 {[%clk 0:01:10]} 27. Nc4 {[%clk 0:00:19]}  Ra6 {[%clk 0:01:09]} 28. Rb3 {[%clk 0:00:13]}  Nb4 {[%clk 0:01:06]} 29. Rba3 {[%clk 0:00:09]}  R8a7 {[%clk 0:01:04]} 30. Ra4 {[%clk 0:00:03]}  Nc6 {[%clk 0:01:02]} 31. R1a3 {[%clk 0:00:04]}  d5 {[%clk 0:00:58]} 32. Nb6 {[%clk 0:00:03]}  e6 {[%clk 0:00:59]} 33. Nc8 {[%clk 0:00:01]}  Rb7 {[%clk 0:00:58]} 34. Nd6 {[%clk 0:00:02]}  Rb8 {[%clk 0:00:56]} 35. Rc3 {[%clk 0:00:01]}  c4 {[%clk 0:00:56]} 36. Nb5 {[%clk 0:00:00]}  Rxb5 {[%clk 0:00:56]} 0-1


[Site "https://www.chess.com"]

[Event "Titled Tuesday Blitz June 27 Early 2023"]
[White "Pham, Le Thao Nguyen"]
[Black "Mirzoev, Azer"]
[WhiteFideId "12401226"]
[BlackFideId "13400304"]
[WhiteElo "2503"]
[BlackElo "2690"]
[Result "0-1"]
[Round "3"]
[TimeControl "180+2"]
[Date "2023.06.27"]
[WhiteClock "0:00:08"]
[BlackClock "0:00:47"]
[Board "97"]

1. d4 {[%clk 0:02:52]}  c6 {[%clk 0:03:00]} 2. c4 {[%clk 0:02:48]}  d5 {[%clk 0:03:01]} 3. cxd5 {[%clk 0:02:48]}  cxd5 {[%clk 0:03:01]} 4. Nc3 {[%clk 0:02:48]}  Nc6 {[%clk 0:03:01]} 5. Nf3 {[%clk 0:02:43]}  e6 {[%clk 0:02:59]} 6. Bf4 {[%clk 0:02:33]}  Bd6 {[%clk 0:02:59]} 7. Bg3 {[%clk 0:02:25]}  Nh6 {[%clk 0:02:58]} 8. e3 {[%clk 0:02:25]}  Nf5 {[%clk 0:02:58]} 9. Bd3 {[%clk 0:02:25]}  Nxg3 {[%clk 0:02:57]} 10. hxg3 {[%clk 0:02:26]}  g6 {[%clk 0:02:51]} 11. Rc1 {[%clk 0:02:22]}  Bd7 {[%clk 0:02:50]} 12. a3 {[%clk 0:02:18]}  Rc8 {[%clk 0:02:49]} 13. Rc2 {[%clk 0:01:51]}  Kf8 {[%clk 0:02:43]} 14. b4 {[%clk 0:01:14]}  Kg7 {[%clk 0:02:41]} 15. Qb1 {[%clk 0:01:10]}  a5 {[%clk 0:02:36]} 16. b5 {[%clk 0:01:05]}  Ne7 {[%clk 0:02:36]} 17. Qb2 {[%clk 0:01:01]}  f6 {[%clk 0:02:29]} 18. Ke2 {[%clk 0:00:56]}  h5 {[%clk 0:02:25]} 19. Rhc1 {[%clk 0:00:54]}  g5 {[%clk 0:02:24]} 20. Na4 {[%clk 0:00:49]}  Rxc2+ {[%clk 0:02:23]} 21. Rxc2 {[%clk 0:00:50]}  h4 {[%clk 0:02:21]} 22. g4 {[%clk 0:00:45]}  h3 {[%clk 0:02:14]} 23. gxh3 {[%clk 0:00:46]}  Rxh3 {[%clk 0:02:13]} 24. Nc5 {[%clk 0:00:47]}  Bc8 {[%clk 0:02:12]} 25. e4 {[%clk 0:00:34]}  Ng6 {[%clk 0:02:07]} 26. Ng1 {[%clk 0:00:29]}  Nf4+ {[%clk 0:02:05]} 27. Kd2 {[%clk 0:00:27]}  Rh2 {[%clk 0:01:58]} 28. Ke3 {[%clk 0:00:23]}  b6 {[%clk 0:01:50]} 29. Na4 {[%clk 0:00:17]}  Rh1 {[%clk 0:01:07]} 30. Rc1 {[%clk 0:00:16]}  Nxd3 {[%clk 0:01:04]} 31. Kxd3 {[%clk 0:00:17]}  dxe4+ {[%clk 0:01:04]} 32. Ke2 {[%clk 0:00:16]}  Bb7 {[%clk 0:01:02]} 33. Qc2 {[%clk 0:00:12]}  Bd5 {[%clk 0:00:58]} 34. Qb2 {[%clk 0:00:11]}  Bf4 {[%clk 0:00:55]} 35. Rd1 {[%clk 0:00:08]}  Qc7 {[%clk 0:00:47]} 0-1


[Site "https://www.chess.com"]

[Event "Titled Tuesday Blitz June 27 Early 2023"]
[White "Veiga, Jose Francisco R P Neves"]
[Black "Czerw, Dawid"]
[WhiteFideId "1930087"]
[BlackFideId "1145746"]
[WhiteElo "2681"]
[BlackElo "2495"]
[Result "1-0"]
[Round "3"]
[TimeControl "180+2"]
[Date "2023.06.27"]
[WhiteClock "0:00:05"]
[BlackClock "0:00:00"]
[Board "102"]

1. c4 {[%clk 0:03:00]}  c6 {[%clk 0:02:59]} 2. Nc3 {[%clk 0:02:53]}  d5 {[%clk 0:02:58]} 3. d4 {[%clk 0:02:52]}  Nf6 {[%clk 0:02:55]} 4. Nf3 {[%clk 0:02:51]}  a6 {[%clk 0:02:55]} 5. Bg5 {[%clk 0:02:44]}  Ne4 {[%clk 0:02:52]} 6. Bf4 {[%clk 0:02:35]}  Nxc3 {[%clk 0:02:43]} 7. bxc3 {[%clk 0:02:36]}  dxc4 {[%clk 0:02:42]} 8. e4 {[%clk 0:02:33]}  b5 {[%clk 0:02:39]} 9. a4 {[%clk 0:02:32]}  Bb7 {[%clk 0:02:31]} 10. Be2 {[%clk 0:02:30]}  Nd7 {[%clk 0:02:26]} 11. O-O {[%clk 0:02:30]}  e6 {[%clk 0:02:25]} 12. Nd2 {[%clk 0:02:23]}  Be7 {[%clk 0:02:20]} 13. Bf3 {[%clk 0:02:23]}  O-O {[%clk 0:02:12]} 14. Qc2 {[%clk 0:02:22]}  c5 {[%clk 0:02:04]} 15. axb5 {[%clk 0:02:16]}  axb5 {[%clk 0:02:02]} 16. Rab1 {[%clk 0:02:07]}  cxd4 {[%clk 0:01:36]} 17. Rxb5 {[%clk 0:02:05]}  d3 {[%clk 0:01:27]} 18. Qb2 {[%clk 0:01:50]}  Ba6 {[%clk 0:01:24]} 19. Nxc4 {[%clk 0:01:45]}  Bxb5 {[%clk 0:01:16]} 20. Qxb5 {[%clk 0:01:46]}  Nc5 {[%clk 0:01:08]} 21. Rd1 {[%clk 0:01:42]}  Ra2 {[%clk 0:00:54]} 22. Be3 {[%clk 0:01:41]}  Qb8 {[%clk 0:00:43]} 23. Nb6 {[%clk 0:01:35]}  Na4 {[%clk 0:00:30]} 24. Qb3 {[%clk 0:01:35]}  Ra3 {[%clk 0:00:26]} 25. Qb5 {[%clk 0:01:13]}  Nxb6 {[%clk 0:00:25]} 26. Bxb6 {[%clk 0:01:14]}  Rxc3 {[%clk 0:00:24]} 27. Qa5 {[%clk 0:01:00]}  Ra3 {[%clk 0:00:20]} 28. Qb5 {[%clk 0:00:59]}  Rc8 {[%clk 0:00:20]} 29. h4 {[%clk 0:00:55]}  Rac3 {[%clk 0:00:20]} 30. Qb1 {[%clk 0:00:28]}  R3c6 {[%clk 0:00:15]} 31. Be3 {[%clk 0:00:23]}  Qxb1 {[%clk 0:00:15]} 32. Rxb1 {[%clk 0:00:24]}  Bc5 {[%clk 0:00:15]} 33. e5 {[%clk 0:00:12]}  Bxe3 {[%clk 0:00:15]} 34. Bxc6 {[%clk 0:00:12]}  Bf4 {[%clk 0:00:07]} 35. Bf3 {[%clk 0:00:07]}  d2 {[%clk 0:00:05]} 36. Rd1 {[%clk 0:00:06]}  Rc5 {[%clk 0:00:04]} 37. g3 {[%clk 0:00:06]}  Bg5 {[%clk 0:00:00]} 38. hxg5 {[%clk 0:00:05]} 1-0


[Site "https://www.chess.com"]

[Event "Titled Tuesday Blitz June 27 Early 2023"]
[White "StiffMaster1"]
[Black "Osmak, Yuliia"]
[BlackFideId "14101602"]
[WhiteElo "2674"]
[BlackElo "2490"]
[Result "0-1"]
[Round "3"]
[TimeControl "180+2"]
[Date "2023.06.27"]
[WhiteClock "0:00:00"]
[BlackClock "0:00:06"]
[Board "105"]

1. Nf3 {[%clk 0:03:00]}  c5 {[%clk 0:02:58]} 2. g3 {[%clk 0:03:00]}  Nc6 {[%clk 0:02:56]} 3. Bg2 {[%clk 0:03:00]}  e5 {[%clk 0:02:55]} 4. Nc3 {[%clk 0:02:58]}  d5 {[%clk 0:02:54]} 5. e4 {[%clk 0:02:50]}  d4 {[%clk 0:02:47]} 6. Nd5 {[%clk 0:02:49]}  Nf6 {[%clk 0:02:42]} 7. c4 {[%clk 0:02:38]}  dxc3 {[%clk 0:02:06]} 8. dxc3 {[%clk 0:02:22]}  Nxe4 {[%clk 0:02:04]} 9. Nxe5 {[%clk 0:02:16]}  Nxe5 {[%clk 0:02:00]} 10. Bxe4 {[%clk 0:02:16]}  Bg4 {[%clk 0:01:50]} 11. Qa4+ {[%clk 0:02:10]}  Bd7 {[%clk 0:01:38]} 12. Qb3 {[%clk 0:01:56]}  Bc6 {[%clk 0:01:33]} 13. c4 {[%clk 0:01:45]}  Bd6 {[%clk 0:01:31]} 14. O-O {[%clk 0:01:41]}  O-O {[%clk 0:01:30]} 15. Bf4 {[%clk 0:01:36]}  Re8 {[%clk 0:01:18]} 16. Rad1 {[%clk 0:01:35]}  Qb8 {[%clk 0:01:11]} 17. Bg2 {[%clk 0:01:31]}  a5 {[%clk 0:00:49]} 18. a4 {[%clk 0:01:27]}  Ra6 {[%clk 0:00:48]} 19. Qc2 {[%clk 0:01:23]}  h6 {[%clk 0:00:40]} 20. b3 {[%clk 0:01:20]}  Bd7 {[%clk 0:00:36]} 21. Rfe1 {[%clk 0:01:19]}  Bg4 {[%clk 0:00:30]} 22. Rb1 {[%clk 0:01:07]}  Nf3+ {[%clk 0:00:14]} 23. Bxf3 {[%clk 0:01:07]}  Rxe1+ {[%clk 0:00:15]} 24. Rxe1 {[%clk 0:01:06]}  Bxf3 {[%clk 0:00:15]} 25. Qf5 {[%clk 0:00:27]}  Bxd5 {[%clk 0:00:12]} 26. cxd5 {[%clk 0:00:12]}  Bxf4 {[%clk 0:00:11]} 27. gxf4 {[%clk 0:00:10]}  Rf6 {[%clk 0:00:11]} 28. Qe5 {[%clk 0:00:10]}  Qd8 {[%clk 0:00:10]} 29. Qe8+ {[%clk 0:00:06]}  Qxe8 {[%clk 0:00:10]} 30. Rxe8+ {[%clk 0:00:07]}  Kh7 {[%clk 0:00:11]} 31. Re7 {[%clk 0:00:06]}  Rb6 {[%clk 0:00:11]} 32. Rxf7 {[%clk 0:00:04]}  Rxb3 {[%clk 0:00:09]} 33. Rc7 {[%clk 0:00:04]}  b6 {[%clk 0:00:09]} 34. d6 {[%clk 0:00:04]}  Rd3 {[%clk 0:00:09]} 35. d7 {[%clk 0:00:05]}  c4 {[%clk 0:00:08]} 36. Kf1 {[%clk 0:00:03]}  c3 {[%clk 0:00:08]} 37. Ke2 {[%clk 0:00:03]}  Rd5 {[%clk 0:00:06]} 38. Rxc3 {[%clk 0:00:03]}  Rxd7 {[%clk 0:00:06]} 39. Rb3 {[%clk 0:00:04]}  Rd6 {[%clk 0:00:06]} 40. f5 {[%clk 0:00:04]}  Kg8 {[%clk 0:00:06]} 41. Ke3 {[%clk 0:00:04]}  Kf7 {[%clk 0:00:07]} 42. Ke4 {[%clk 0:00:04]}  Kf6 {[%clk 0:00:07]} 43. Rb5 {[%clk 0:00:05]}  Rc6 {[%clk 0:00:07]} 44. Ke3 {[%clk 0:00:04]}  Rd6 {[%clk 0:00:06]} 45. Ke4 {[%clk 0:00:05]}  h5 {[%clk 0:00:06]} 46. h4 {[%clk 0:00:04]}  Kf7 {[%clk 0:00:04]} 47. Ke5 {[%clk 0:00:04]}  Rc6 {[%clk 0:00:04]} 48. f4 {[%clk 0:00:04]}  Ke7 {[%clk 0:00:04]} 49. Kd5 {[%clk 0:00:04]}  Rf6 {[%clk 0:00:04]} 50. Ke4 {[%clk 0:00:05]}  Rc6 {[%clk 0:00:04]} 51. Kd5 {[%clk 0:00:05]}  Rf6 {[%clk 0:00:04]} 52. Ke4 {[%clk 0:00:06]}  Rc6 {[%clk 0:00:04]} 53. f6+ {[%clk 0:00:05]}  Kxf6 {[%clk 0:00:04]} 54. Rxh5 {[%clk 0:00:05]}  Rc4+ {[%clk 0:00:04]} 55. Kd5 {[%clk 0:00:05]}  Rxa4 {[%clk 0:00:05]} 56. f5 {[%clk 0:00:02]}  Rf4 {[%clk 0:00:05]} 57. Kc6 {[%clk 0:00:01]}  Rxf5 {[%clk 0:00:05]} 58. Rh8 {[%clk 0:00:02]}  b5 {[%clk 0:00:05]} 59. Rf8+ {[%clk 0:00:01]}  Kg6 {[%clk 0:00:06]} 60. Ra8 {[%clk 0:00:01]}  a4 {[%clk 0:00:06]} 61. Ra7 {[%clk 0:00:01]}  Kh6 {[%clk 0:00:06]} 62. Kd6 {[%clk 0:00:01]}  Rf4 {[%clk 0:00:05]} 63. Ke5 {[%clk 0:00:01]}  Rxh4 {[%clk 0:00:05]} 64. Kf5 {[%clk 0:00:01]}  Rb4 {[%clk 0:00:04]} 65. Ra6+ {[%clk 0:00:01]}  Kh7 {[%clk 0:00:04]} 66. Ra8 {[%clk 0:00:01]}  Rb3 {[%clk 0:00:05]} 67. Ke4 {[%clk 0:00:01]}  a3 {[%clk 0:00:05]} 68. Kd4 {[%clk 0:00:02]}  b4 {[%clk 0:00:05]} 69. Kc4 {[%clk 0:00:02]}  Rb2 {[%clk 0:00:06]} 70. Ra5 {[%clk 0:00:02]}  a2 {[%clk 0:00:06]} 71. Rh5+ {[%clk 0:00:02]}  Kg8 {[%clk 0:00:06]} 72. Rh1 {[%clk 0:00:03]}  b3 {[%clk 0:00:06]} 73. Rd1 {[%clk 0:00:00]}  Rb1 {[%clk 0:00:06]} 0-1


[Site "https://www.chess.com"]

[Event "Titled Tuesday Blitz June 27 Early 2023"]
[White "Ginzburg, Yakov"]
[Black "Danielyan, Vahe"]
[WhiteFideId "4157176"]
[BlackFideId "13304828"]
[WhiteElo "2489"]
[BlackElo "2671"]
[Result "0-1"]
[Round "3"]
[TimeControl "180+2"]
[Date "2023.06.27"]
[WhiteClock "0:00:01"]
[BlackClock "0:00:27"]
[Board "106"]

1. e4 {[%clk 0:03:00]}  c5 {[%clk 0:02:56]} 2. Nf3 {[%clk 0:03:00]}  Nc6 {[%clk 0:02:55]} 3. d4 {[%clk 0:02:59]}  cxd4 {[%clk 0:02:55]} 4. Nxd4 {[%clk 0:03:00]}  g6 {[%clk 0:02:55]} 5. c4 {[%clk 0:03:00]}  Nf6 {[%clk 0:02:55]} 6. Nc3 {[%clk 0:03:00]}  Nxd4 {[%clk 0:02:54]} 7. Qxd4 {[%clk 0:02:59]}  d6 {[%clk 0:02:55]} 8. Be3 {[%clk 0:02:55]}  Bg7 {[%clk 0:02:55]} 9. f3 {[%clk 0:02:56]}  O-O {[%clk 0:02:53]} 10. Qd2 {[%clk 0:02:56]}  Be6 {[%clk 0:02:52]} 11. Rc1 {[%clk 0:02:55]}  a5 {[%clk 0:02:52]} 12. Nd5 {[%clk 0:02:53]}  a4 {[%clk 0:02:37]} 13. Nb6 {[%clk 0:02:38]}  Ra6 {[%clk 0:02:18]} 14. c5 {[%clk 0:02:30]}  Rxb6 {[%clk 0:02:16]} 15. cxb6 {[%clk 0:02:30]}  d5 {[%clk 0:02:11]} 16. e5 {[%clk 0:02:19]}  Nd7 {[%clk 0:02:08]} 17. f4 {[%clk 0:02:19]}  Nxb6 {[%clk 0:02:02]} 18. Qd4 {[%clk 0:02:14]}  Nc4 {[%clk 0:01:51]} 19. Bxc4 {[%clk 0:02:07]}  dxc4 {[%clk 0:01:52]} 20. Qxd8 {[%clk 0:01:53]}  Rxd8 {[%clk 0:01:51]} 21. Kf2 {[%clk 0:01:40]}  b5 {[%clk 0:01:40]} 22. Rhd1 {[%clk 0:01:38]}  Bd5 {[%clk 0:01:39]} 23. b3 {[%clk 0:01:24]}  cxb3 {[%clk 0:01:28]} 24. axb3 {[%clk 0:01:25]}  axb3 {[%clk 0:01:29]} 25. Rc5 {[%clk 0:01:21]}  e6 {[%clk 0:01:27]} 26. Rxb5 {[%clk 0:01:19]}  Rc8 {[%clk 0:01:24]} 27. Rc1 {[%clk 0:01:09]}  Ra8 {[%clk 0:01:12]} 28. Rbc5 {[%clk 0:00:43]}  Ra2+ {[%clk 0:01:12]} 29. Kg3 {[%clk 0:00:23]}  Bf8 {[%clk 0:01:04]} 30. Rc8 {[%clk 0:00:22]}  Kg7 {[%clk 0:01:01]} 31. Rb8 {[%clk 0:00:10]}  Rxg2+ {[%clk 0:00:55]} 32. Kh3 {[%clk 0:00:11]}  Re2 {[%clk 0:00:52]} 33. Bd4 {[%clk 0:00:09]}  Re4 {[%clk 0:00:38]} 34. Bc5 {[%clk 0:00:09]}  Bxc5 {[%clk 0:00:36]} 35. Rxc5 {[%clk 0:00:09]}  Rxf4 {[%clk 0:00:36]} 36. Rcc8 {[%clk 0:00:08]}  Re4 {[%clk 0:00:34]} 37. Rg8+ {[%clk 0:00:06]}  Kh6 {[%clk 0:00:34]} 38. Rbf8 {[%clk 0:00:07]}  b2 {[%clk 0:00:31]} 39. Rb8 {[%clk 0:00:07]}  Re3+ {[%clk 0:00:31]} 40. Kh4 {[%clk 0:00:01]}  Rb3 {[%clk 0:00:27]} 0-1


[Site "https://www.chess.com"]

[Event "Titled Tuesday Blitz June 27 Early 2023"]
[White "Korchmar, Vasiliy"]
[Black "Baches Garcia, Guillermo"]
[WhiteFideId "24131750"]
[BlackFideId "2209764"]
[WhiteElo "2671"]
[BlackElo "2489"]
[Result "1-0"]
[Round "3"]
[TimeControl "180+2"]
[Date "2023.06.27"]
[WhiteClock "0:00:42"]
[BlackClock "0:00:00"]
[Board "107"]

1. e4 {[%clk 0:03:00]}  d5 {[%clk 0:03:00]} 2. exd5 {[%clk 0:02:57]}  Qxd5 {[%clk 0:03:01]} 3. Nc3 {[%clk 0:02:57]}  Qa5 {[%clk 0:03:01]} 4. d4 {[%clk 0:02:58]}  Nf6 {[%clk 0:03:00]} 5. Nf3 {[%clk 0:02:58]}  Bf5 {[%clk 0:02:59]} 6. Ne5 {[%clk 0:02:54]}  c6 {[%clk 0:02:59]} 7. Bc4 {[%clk 0:02:51]}  e6 {[%clk 0:02:59]} 8. g4 {[%clk 0:02:52]}  Bg6 {[%clk 0:02:58]} 9. h4 {[%clk 0:02:52]}  Nbd7 {[%clk 0:02:59]} 10. Nxd7 {[%clk 0:02:42]}  Nxd7 {[%clk 0:03:00]} 11. h5 {[%clk 0:02:40]}  Be4 {[%clk 0:02:59]} 12. O-O {[%clk 0:02:40]}  Bd5 {[%clk 0:02:57]} 13. Nxd5 {[%clk 0:02:41]}  cxd5 {[%clk 0:02:58]} 14. Bd3 {[%clk 0:02:41]}  Bd6 {[%clk 0:02:58]} 15. Bd2 {[%clk 0:02:33]}  Qc7 {[%clk 0:02:54]} 16. Qf3 {[%clk 0:02:26]}  g6 {[%clk 0:02:42]} 17. h6 {[%clk 0:02:26]}  O-O {[%clk 0:02:29]} 18. Rac1 {[%clk 0:02:24]}  Rae8 {[%clk 0:02:07]} 19. c4 {[%clk 0:02:24]}  dxc4 {[%clk 0:02:06]} 20. Bxc4 {[%clk 0:02:25]}  Qd8 {[%clk 0:01:51]} 21. Bc3 {[%clk 0:02:23]}  Qh4 {[%clk 0:01:45]} 22. Qg2 {[%clk 0:02:23]}  Qxh6 {[%clk 0:01:37]} 23. d5 {[%clk 0:02:23]}  Nb6 {[%clk 0:01:31]} 24. Bb5 {[%clk 0:02:22]}  Nxd5 {[%clk 0:01:25]} 25. Bxe8 {[%clk 0:02:22]}  Nf4 {[%clk 0:01:13]} 26. Qh1 {[%clk 0:01:52]}  Ne2+ {[%clk 0:00:47]} 27. Kg2 {[%clk 0:01:52]}  Qg5 {[%clk 0:00:41]} 28. Qxh7+ {[%clk 0:01:50]}  Kxh7 {[%clk 0:00:39]} 29. Rh1+ {[%clk 0:01:51]}  Qh6 {[%clk 0:00:35]} 30. g5 {[%clk 0:01:26]}  Nf4+ {[%clk 0:00:28]} 31. Kf3 {[%clk 0:01:25]}  Qh5+ {[%clk 0:00:16]} 32. Rxh5+ {[%clk 0:01:22]}  Nxh5 {[%clk 0:00:16]} 33. Ba4 {[%clk 0:01:19]}  Rc8 {[%clk 0:00:16]} 34. Rd1 {[%clk 0:01:17]}  Bf8 {[%clk 0:00:13]} 35. Rd7 {[%clk 0:01:18]}  Kg8 {[%clk 0:00:14]} 36. Rxb7 {[%clk 0:01:18]}  Rc5 {[%clk 0:00:13]} 37. Rxa7 {[%clk 0:01:03]}  Rf5+ {[%clk 0:00:13]} 38. Ke4 {[%clk 0:00:49]}  Rxg5 {[%clk 0:00:11]} 39. Ra8 {[%clk 0:00:49]}  f5+ {[%clk 0:00:08]} 40. Ke3 {[%clk 0:00:45]}  Kf7 {[%clk 0:00:09]} 41. Ra7+ {[%clk 0:00:44]}  Kg8 {[%clk 0:00:09]} 42. Ra8 {[%clk 0:00:42]}  Kf7 {[%clk 0:00:09]} 43. Be8+ {[%clk 0:00:43]}  Ke7 {[%clk 0:00:07]} 44. Bb4+ {[%clk 0:00:42]}  Kf6 {[%clk 0:00:00]} 45. Bxf8 {[%clk 0:00:42]} 1-0


[Site "https://www.chess.com"]

[Event "Titled Tuesday Blitz June 27 Early 2023"]
[White "Srebrnic, Marko"]
[Black "djokovic74"]
[WhiteFideId "14603616"]
[WhiteElo "2487"]
[BlackElo "2670"]
[Result "1/2-1/2"]
[Round "3"]
[TimeControl "180+2"]
[Date "2023.06.27"]
[WhiteClock "0:00:10"]
[BlackClock "0:00:08"]
[Board "108"]

1. e4 {[%clk 0:02:59]}  e5 {[%clk 0:03:00]} 2. Nc3 {[%clk 0:02:59]}  Nc6 {[%clk 0:03:00]} 3. Bc4 {[%clk 0:03:00]}  Nf6 {[%clk 0:02:59]} 4. d3 {[%clk 0:02:59]}  Bc5 {[%clk 0:02:59]} 5. f4 {[%clk 0:02:59]}  d6 {[%clk 0:02:58]} 6. Nf3 {[%clk 0:02:59]}  Bg4 {[%clk 0:02:53]} 7. h3 {[%clk 0:02:59]}  Bxf3 {[%clk 0:02:54]} 8. Qxf3 {[%clk 0:02:59]}  Nd4 {[%clk 0:02:54]} 9. Qg3 {[%clk 0:02:59]}  Nh5 {[%clk 0:02:45]} 10. Qg4 {[%clk 0:02:59]}  g6 {[%clk 0:02:40]} 11. Kd1 {[%clk 0:02:37]}  Qd7 {[%clk 0:02:37]} 12. fxe5 {[%clk 0:02:28]}  dxe5 {[%clk 0:02:26]} 13. Be3 {[%clk 0:02:07]}  Qxg4+ {[%clk 0:01:57]} 14. hxg4 {[%clk 0:02:07]}  Nf6 {[%clk 0:01:58]} 15. Rh4 {[%clk 0:01:36]}  h5 {[%clk 0:01:46]} 16. g5 {[%clk 0:01:14]}  Ng4 {[%clk 0:01:45]} 17. Bxd4 {[%clk 0:01:15]}  Bxd4 {[%clk 0:01:44]} 18. Ke2 {[%clk 0:01:14]}  Be3 {[%clk 0:01:37]} 19. Rxg4 {[%clk 0:01:10]}  hxg4 {[%clk 0:01:38]} 20. Kxe3 {[%clk 0:01:10]}  c6 {[%clk 0:01:34]} 21. Rf1 {[%clk 0:01:08]}  Rh7 {[%clk 0:01:35]} 22. Kf2 {[%clk 0:00:59]}  a5 {[%clk 0:01:27]} 23. a4 {[%clk 0:00:58]}  Ke7 {[%clk 0:01:23]} 24. Kg3 {[%clk 0:00:57]}  Rf8 {[%clk 0:01:14]} 25. Nd1 {[%clk 0:00:53]}  Rh5 {[%clk 0:01:13]} 26. Kxg4 {[%clk 0:00:49]}  f6 {[%clk 0:01:14]} 27. gxf6+ {[%clk 0:00:48]}  Rxf6 {[%clk 0:01:14]} 28. Rxf6 {[%clk 0:00:47]}  Kxf6 {[%clk 0:01:15]} 29. Nf2 {[%clk 0:00:44]}  Rg5+ {[%clk 0:01:13]} 30. Kf3 {[%clk 0:00:43]}  Rh5 {[%clk 0:01:13]} 31. c3 {[%clk 0:00:38]}  c5 {[%clk 0:01:11]} 32. Bd5 {[%clk 0:00:37]}  b6 {[%clk 0:01:11]} 33. Bc6 {[%clk 0:00:36]}  Ke6 {[%clk 0:01:01]} 34. Bb7 {[%clk 0:00:35]}  Rh8 {[%clk 0:00:56]} 35. Bd5+ {[%clk 0:00:34]}  Kd6 {[%clk 0:00:56]} 36. Kg3 {[%clk 0:00:33]}  Rf8 {[%clk 0:00:54]} 37. Bb3 {[%clk 0:00:33]}  Rf6 {[%clk 0:00:48]} 38. Bd1 {[%clk 0:00:33]}  Rf8 {[%clk 0:00:46]} 39. Be2 {[%clk 0:00:31]}  Rb8 {[%clk 0:00:42]} 40. c4 {[%clk 0:00:25]}  Rf8 {[%clk 0:00:39]} 41. Ng4 {[%clk 0:00:24]}  Rh8 {[%clk 0:00:31]} 42. Ne3 {[%clk 0:00:21]}  Rh1 {[%clk 0:00:30]} 43. Bf1 {[%clk 0:00:21]}  Kd7 {[%clk 0:00:20]} 44. Kf2 {[%clk 0:00:21]}  Kd6 {[%clk 0:00:20]} 45. Nd5 {[%clk 0:00:21]}  Rh8 {[%clk 0:00:19]} 46. Kg3 {[%clk 0:00:18]}  Rh1 {[%clk 0:00:18]} 47. Kf2 {[%clk 0:00:17]}  Rh8 {[%clk 0:00:19]} 48. Be2 {[%clk 0:00:18]}  Ke6 {[%clk 0:00:16]} 49. b3 {[%clk 0:00:16]}  Kd6 {[%clk 0:00:15]} 50. Kg3 {[%clk 0:00:16]}  Rh1 {[%clk 0:00:14]} 51. Nxb6 {[%clk 0:00:15]}  Rb1 {[%clk 0:00:15]} 52. Bg4 {[%clk 0:00:14]}  Rxb3 {[%clk 0:00:14]} 53. Nd5 {[%clk 0:00:14]}  Rxd3+ {[%clk 0:00:14]} 54. Kh4 {[%clk 0:00:14]}  Rd4 {[%clk 0:00:13]} 55. Bf3 {[%clk 0:00:11]}  Rxc4 {[%clk 0:00:13]} 56. Kg5 {[%clk 0:00:12]}  Rxa4 {[%clk 0:00:11]} 57. Kxg6 {[%clk 0:00:13]}  c4 {[%clk 0:00:09]} 58. Be2 {[%clk 0:00:07]}  Kc5 {[%clk 0:00:07]} 59. g4 {[%clk 0:00:07]}  Ra2 {[%clk 0:00:07]} 60. Bd1 {[%clk 0:00:06]}  Kd4 {[%clk 0:00:04]} 61. g5 {[%clk 0:00:05]}  c3 {[%clk 0:00:04]} 62. Nxc3 {[%clk 0:00:02]}  Kxc3 {[%clk 0:00:04]} 63. Bg4 {[%clk 0:00:03]}  a4 {[%clk 0:00:03]} 64. Kf5 {[%clk 0:00:03]}  a3 {[%clk 0:00:03]} 65. Kxe5 {[%clk 0:00:04]}  Rg2 {[%clk 0:00:02]} 66. Be6 {[%clk 0:00:05]}  Kb2 {[%clk 0:00:02]} 67. Kf6 {[%clk 0:00:05]}  Kc3 {[%clk 0:00:02]} 68. e5 {[%clk 0:00:05]}  Kd4 {[%clk 0:00:03]} 69. g6 {[%clk 0:00:05]}  Rf2+ {[%clk 0:00:04]} 70. Ke7 {[%clk 0:00:05]}  Kxe5 {[%clk 0:00:04]} 71. g7 {[%clk 0:00:06]}  Rg2 {[%clk 0:00:03]} 72. g8=Q {[%clk 0:00:07]}  Rxg8 {[%clk 0:00:04]} 73. Bxg8 {[%clk 0:00:08]}  Kd4 {[%clk 0:00:04]} 74. Bf7 {[%clk 0:00:08]}  Kc3 {[%clk 0:00:05]} 75. Be6 {[%clk 0:00:09]}  Kb2 {[%clk 0:00:06]} 76. Bd5 {[%clk 0:00:09]}  Kc3 {[%clk 0:00:07]} 77. Be6 {[%clk 0:00:09]}  Kd4 {[%clk 0:00:07]} 78. Bf7 {[%clk 0:00:09]}  Ke5 {[%clk 0:00:07]} 79. Bg8 {[%clk 0:00:10]}  Kd4 {[%clk 0:00:07]} 80. Kd6 {[%clk 0:00:10]}  Kc3 {[%clk 0:00:06]} 81. Kc5 {[%clk 0:00:10]}  Kc2 {[%clk 0:00:07]} 82. Kb4 {[%clk 0:00:10]}  Kb2 {[%clk 0:00:08]} 83. Bf7 {[%clk 0:00:10]}  a2 {[%clk 0:00:08]} 84. Bxa2 {[%clk 0:00:10]} 1/2-1/2


[Site "https://www.chess.com"]